fUST/lending_fUST_20250901
["ID","MTS","AMOUNT","RATE_DAILY","PERIOD"]
[382815109,1756737033163,-500.0,0.00013588,2]
[382815110,1756737033172,-500.0,0.00013588,2]
[382815111,1756737033181,-500.0,0.00013588,2]
[382815112,1756737033191,-500.0,0.00013588,2]
[382815113,1756737033200,-500.0,0.00013588,2]
[382815114,1756737033210,-500.0,0.00013588,2]
[382815115,1756737033219,-500.0,0.00013588,2]
[382815116,1756737033228,-500.0,0.00013588,2]
[382815117,1756737033238,-500.0,0.00013588,2]
[382815118,1756737033248,-500.0,0.00013588,2]
[382815119,1756737033258,-500.0,0.00013588,2]
[382815120,1756737033268,-510.69571038,0.00013588,2]
[382815121,1756737033277,-500.0,0.00013589,2]
[382815122,1756737033287,-298.9154878,0.00013589,2]
[382815123,1756737033296,-500.0,0.00013589,2]
[382815124,1756737033306,-500.0,0.00013589,2]
[382815125,1756737033315,-500.0,0.00013589,2]
[382815126,1756737033325,-500.0,0.00013589,2]
[382815127,1756737033334,-500.0,0.00013589,2]
[382815128,1756737033344,-427.79239117,0.00013589,2]
[382815129,1756737033353,-500.0,0.00013589,2]
[382815130,1756737033363,-300.0,0.00013589,2]
[382815131,1756737033373,-500.0,0.00013589,2]
[382815132,1756737033383,-550.0,0.00013589,2]
[382815133,1756737033393,-500.0,0.00013589,2]
[382815134,1756737033403,-500.0,0.00013589,2]
[382815135,1756737033412,-200.0,0.00013589,2]
[382815136,1756737033421,-757.92463078,0.00013589,2]
[382815137,1756737033431,-757.92463078,0.00013589,2]
[382815138,1756737033441,-757.92463078,0.00013589,2]
[382815139,1756737033451,-174.1078746,0.00013589,2]
[382815140,1756737033461,-757.92463078,0.00013589,2]
[382815141,1756737033470,-757.92463078,0.00013589,2]
[382815142,1756737033480,-757.92463078,0.00013589,2]
[382815143,1756737033490,-757.92463078,0.00013589,2]
[382815144,1756737033501,-757.92463078,0.00013589,2]
[382815145,1756737033511,-757.92463078,0.00013589,2]
[382815146,1756737033521,-783.18878514,0.00013589,2]
[382815147,1756737033531,-783.18878514,0.00013589,2]
[382815148,1756737033540,-783.18878514,0.00013589,2]
[382815149,1756737033550,-783.18878514,0.00013589,2]
[382815150,1756737033560,-190058.46607017,0.0001359,2]
[382815151,1756737033570,-215.059,0.00013617,2]
[382815152,1756737033580,-160.0,0.00013664,2]
[382815153,1756737033589,-500.0,0.00013673,2]
[382815154,1756737033599,-729.0,0.00013675,2]
[382815155,1756737033609,-11366.76240249,0.00013683,2]
[382815156,1756737033618,-151.0,0.0001369,2]
[382815157,1756737033628,-201.93286099,0.0001369,2]
[382815158,1756737033638,-500.0,0.0001369,2]
[382815159,1756737033647,-500.0,0.0001369,2]
[382815160,1756737033657,-500.0,0.0001369,2]
[382815161,1756737033667,-500.0,0.0001369,2]
[382815162,1756737033676,-500.0,0.0001369,2]
[382815163,1756737033686,-500.0,0.0001369,2]
[382815164,1756737033695,-500.0,0.0001369,2]
[382815165,1756737033705,-500.0,0.0001369,2]
[382815166,1756737033715,-500.0,0.0001369,2]
[382815167,1756737033725,-500.0,0.0001369,2]
[382815168,1756737033736,-500.0,0.0001369,2]
[382815169,1756737033746,-500.0,0.0001369,2]
[382815170,1756737033757,-530.14184084,0.0001369,2]
[382815171,1756737033767,-160.0,0.0001369,2]
[382815172,1756737033776,-160.0,0.0001369,2]
[382815173,1756737033786,-160.0,0.0001369,2]
[382815174,1756737033795,-160.0,0.0001369,2]
[382815175,1756737033805,-846.10922732,0.0001369,2]
[382815176,1756737033819,-217.44302069,0.0001369,2]
[382815177,1756737033828,-160.0,0.0001369,2]
[382815178,1756737033837,-425.82406011,0.0001369,2]
[382815179,1756737033846,-232.83393981,0.0001369,2]
[382815180,1756737033857,-151.0,0.0001369,2]
[382815181,1756737033866,-151.0,0.0001369,2]
[382815182,1756737033875,-151.0,0.0001369,2]
[382815183,1756737033886,-500.0,0.0001369,2]
[382815184,1756737033895,-151.0,0.0001369,2]
[382815185,1756737033904,-437.53076278,0.0001369,2]
[382815201,1756737038504,-595.46923722,0.0001369,2]
[382815203,1756737038515,-151.0,0.0001369,2]
[382815205,1756737038525,-151.0,0.0001369,2]
[382815207,1756737038538,-151.0,0.0001369,2]
[382815209,1756737038548,-480.0,0.00013698,2]
[382815211,1756737038559,-480.0,0.00013698,2]
[382815213,1756737038570,-480.0,0.00013698,2]
[382815215,1756737038581,-480.0,0.00013698,2]
[382815218,1756737038591,-551.44,0.00013698,2]
[382815220,1756737038602,-480.0,0.00013698,2]
[382815222,1756737038613,-480.0,0.00013698,2]
[382815224,1756737038625,-480.0,0.00013698,2]
[382815226,1756737038637,-480.0,0.00013698,2]
[382815228,1756737038648,-713.78,0.00013698,2]
[382815231,1756737038658,-480.0,0.00013698,2]
[382815233,1756737038669,-525.01,0.00013698,2]
[382815235,1756737038680,-480.0,0.00013698,2]
[382815237,1756737038690,-480.0,0.00013698,2]
[382815239,1756737038701,-558.9,0.00013698,2]
[382815241,1756737038712,-3263.43112723,0.00013698,2]
[382815244,1756737038722,-480.0,0.00013698,2]
[382815246,1756737038733,-731.33,0.00013698,2]
[382815248,1756737038744,-480.0,0.00013698,2]
[382815250,1756737038754,-480.0,0.00013698,2]
[382815252,1756737038765,-480.0,0.00013698,2]
[382815254,1756737038777,-480.0,0.00013698,2]
[382815256,1756737038788,-480.0,0.00013698,2]
[382815259,1756737038799,-480.0,0.00013698,2]
[382815261,1756737038810,-480.0,0.00013698,2]
[382815263,1756737038825,-480.0,0.00013698,2]
[382815265,1756737038836,-480.0,0.00013698,2]
[382815267,1756737038845,-480.0,0.00013698,2]
[382815269,1756737038855,-480.0,0.00013698,2]
[382815271,1756737038864,-472.43239006,0.00013698,2]
[382815273,1756737038876,-482.11932971,0.00013698,2]
[382815275,1756737038886,-480.0,0.00013698,2]
[382815277,1756737038897,-480.0,0.00013698,2]
[382815279,1756737038908,-480.0,0.00013698,2]
[382815281,1756737038917,-591.92,0.00013698,2]
[382815283,1756737038926,-480.0,0.00013698,2]
[382815285,1756737038935,-480.0,0.00013698,2]
[382815287,1756737038945,-480.0,0.00013698,2]
[382815289,1756737038954,-480.0,0.00013698,2]
[382815291,1756737038964,-484.72,0.00013698,2]
[382815293,1756737038973,-480.0,0.00013698,2]
[382815295,1756737038982,-480.0,0.00013698,2]
[382815325,1756737039267,-587.04,0.00013698,2]
[382815328,1756737039283,-480.0,0.00013698,2]
[382815330,1756737039292,-480.0,0.00013698,2]
[382815332,1756737039301,-483.2922134,0.00013698,2]
[382815334,1756737039312,-480.0,0.00013698,2]
[382815336,1756737039321,-480.0,0.00013698,2]
[382815338,1756737039330,-480.0,0.00013698,2]
[382815340,1756737039339,-577.26,0.00013698,2]
[382815342,1756737039349,-480.0,0.00013698,2]
[382815344,1756737039358,-480.0,0.00013698,2]
[382815346,1756737039367,-480.0,0.00013698,2]
[382815348,1756737039380,-438.14902983,0.00013698,2]
[382815350,1756737039389,-480.0,0.00013698,2]
[382815352,1756737039399,-583.33,0.00013698,2]
[382815354,1756737039408,-480.0,0.00013698,2]
[382815356,1756737039418,-480.0,0.00013698,2]
[382815358,1756737039428,-480.0,0.00013698,2]
[382815360,1756737039437,-490.29,0.00013698,2]
[382815362,1756737039447,-555.42,0.00013698,2]
[382815364,1756737039457,-520.11037431,0.00013698,2]
[382815366,1756737039466,-480.0,0.00013698,2]
[382815368,1756737039476,-480.0,0.00013698,2]
[382815370,1756737039485,-480.0,0.00013698,2]
[382815372,1756737039494,-480.0,0.00013698,2]
[382815374,1756737039503,-480.0,0.00013698,2]
[382815376,1756737039513,-480.0,0.00013698,2]
[382815378,1756737039522,-480.0,0.00013698,2]
[382815380,1756737039531,-480.0,0.00013698,2]
[382815382,1756737039540,-480.0,0.00013698,2]
[382815384,1756737039550,-480.0,0.00013698,2]
[382815386,1756737039559,-480.0,0.00013698,2]
[382815388,1756737039569,-480.0,0.00013698,2]
[382815390,1756737039578,-480.0,0.00013698,2]
[382815392,1756737039587,-480.0,0.00013698,2]
[382815394,1756737039596,-480.0,0.00013698,2]
[382815396,1756737039606,-480.0,0.00013698,2]
[382815398,1756737039615,-480.0,0.00013698,2]
[382815400,1756737039627,-480.0,0.00013698,2]
[382815402,1756737039637,-485.26,0.00013698,2]
[382815404,1756737039646,-821.45,0.00013698,2]
[382815406,1756737039656,-480.0,0.00013698,2]
[382815408,1756737039666,-480.0,0.00013698,2]
[382815410,1756737039675,-480.0,0.00013698,2]
[382815412,1756737039684,-480.0,0.00013698,2]
[382815415,1756737039696,-480.0,0.00013698,2]
[382815417,1756737039706,-480.0,0.00013698,2]
[382815419,1756737039715,-480.0,0.00013698,2]
[382815420,1756737039725,-480.0,0.00013698,2]
[382815422,1756737039734,-480.0,0.00013698,2]
[382815425,1756737039743,-480.0,0.00013698,2]
[382815427,1756737039753,-480.0,0.00013698,2]
[382815429,1756737039763,-552.67,0.00013698,2]
[382815431,1756737039773,-480.0,0.00013698,2]
[382815433,1756737039782,-480.0,0.00013698,2]
[382815435,1756737039792,-480.0,0.00013698,2]
[382815437,1756737039801,-480.0,0.00013698,2]
[382815439,1756737039811,-480.0,0.00013698,2]
[382815441,1756737039824,-480.0,0.00013698,2]
[382815443,1756737039833,-158.82,0.00013698,2]
[382815445,1756737039843,-480.0,0.00013698,2]
[382815447,1756737039852,-480.0,0.00013698,2]
[382815449,1756737039862,-480.0,0.00013698,2]
[382815451,1756737039871,-480.0,0.00013698,2]
[382815453,1756737039882,-480.0,0.00013698,2]
[382815455,1756737039892,-164.04825935,0.00013698,2]
[382815478,1756737040802,-315.95174065,0.00013698,2]
[382815479,1756737040812,-480.0,0.00013698,2]
[382815480,1756737040826,-480.0,0.00013698,2]
[382815481,1756737040835,-480.0,0.00013698,2]
[382815482,1756737040844,-480.0,0.00013698,2]
[382815483,1756737040855,-480.0,0.00013698,2]
[382815484,1756737040864,-774.88,0.00013698,2]
[382815485,1756737040873,-492.11,0.00013698,2]
[382815486,1756737040883,-506.69074386,0.00013698,2]
[382815487,1756737040894,-480.0,0.00013698,2]
[382815488,1756737040904,-480.0,0.00013698,2]
[382815489,1756737040913,-480.0,0.00013698,2]
[382815490,1756737040922,-1194.46,0.00013698,2]
[382815491,1756737040933,-480.0,0.00013698,2]
[382815492,1756737040942,-406.64322405,0.00013698,2]
[382815493,1756737040952,-480.0,0.00013698,2]
[382815494,1756737040961,-480.0,0.00013698,2]
[382815495,1756737040971,-480.0,0.00013698,2]
[382815496,1756737040981,-480.0,0.00013698,2]
[382815497,1756737040990,-1080.6,0.00013698,2]
[382815498,1756737040999,-480.0,0.00013698,2]
[382815499,1756737041009,-480.0,0.00013698,2]
[382815500,1756737041018,-480.0,0.00013698,2]
[382815501,1756737041027,-951.19,0.00013698,2]
[382815502,1756737041036,-480.0,0.00013698,2]
[382815503,1756737041045,-480.0,0.00013698,2]
[382815504,1756737041055,-376.78,0.00013698,2]
[382815505,1756737041064,-480.0,0.00013698,2]
[382815506,1756737041074,-480.0,0.00013698,2]
[382815507,1756737041083,-480.0,0.00013698,2]
[382815508,1756737041092,-480.0,0.00013698,2]
[382815509,1756737041102,-480.0,0.00013698,2]
[382815510,1756737041121,-734.37,0.00013698,2]
[382815511,1756737041135,-480.0,0.00013698,2]
[382815512,1756737041145,-259.25485681,0.00013698,2]
[382815585,1756737043717,-458.13514319,0.00013698,2]
[382815586,1756737043727,-480.0,0.00013698,2]
[382815587,1756737043737,-296.85524077,0.00013698,2]
[382815593,1756737046691,-232.83393981,0.0001369,2]
[382815594,1756737046702,-183.14475923,0.00013698,2]
[382815595,1756737046712,-242.23334491,0.00013698,2]
[382815596,1756737046863,-237.76665509,0.00013698,2]
[382815597,1756737046872,-692.24,0.00013698,2]
[382815598,1756737046883,-480.0,0.00013698,2]
[382815599,1756737046894,-480.0,0.00013698,2]
[382815600,1756737046905,-480.0,0.00013698,2]
[382815601,1756737046915,-480.0,0.00013698,2]
[382815602,1756737046925,-480.0,0.00013698,2]
[382815603,1756737046935,-480.0,0.00013698,2]
[382815604,1756737046946,-480.0,0.00013698,2]
[382815605,1756737046956,-480.0,0.00013698,2]
[382815606,1756737046966,-480.0,0.00013698,2]
[382815607,1756737046975,-480.0,0.00013698,2]
[382815608,1756737046985,-480.0,0.00013698,2]
[382815609,1756737046995,-480.0,0.00013698,2]
[382815610,1756737047004,-480.0,0.00013698,2]
[382815611,1756737047013,-480.0,0.00013698,2]
[382815612,1756737047023,-480.0,0.00013698,2]
[382815613,1756737047033,-480.0,0.00013698,2]
[382815614,1756737047042,-480.0,0.00013698,2]
[382815615,1756737047051,-681.22,0.00013698,2]
[382815616,1756737047060,-480.0,0.00013698,2]
[382815617,1756737047070,-727.48,0.00013698,2]
[382815618,1756737047079,-480.0,0.00013698,2]
[382815619,1756737047089,-480.0,0.00013698,2]
[382815620,1756737047099,-862.52,0.00013698,2]
[382815621,1756737047108,-480.0,0.00013698,2]
[382815622,1756737047118,-480.0,0.00013698,2]
[382815623,1756737047128,-480.0,0.00013698,2]
[382815624,1756737047137,-480.0,0.00013698,2]
[382815625,1756737047147,-594.63,0.00013698,2]
[382815626,1756737047157,-480.0,0.00013698,2]
[382815627,1756737047166,-480.0,0.00013698,2]
[382815628,1756737047176,-480.0,0.00013698,2]
[382815629,1756737047185,-669.84,0.00013698,2]
[382815630,1756737047195,-480.0,0.00013698,2]
[382815631,1756737047204,-746.38,0.00013698,2]
[382815632,1756737047215,-480.0,0.00013698,2]
[382815633,1756737047225,-480.0,0.00013698,2]
[382815634,1756737047235,-480.0,0.00013698,2]
[382815635,1756737047244,-830.25,0.00013698,2]
[382815636,1756737047254,-480.0,0.00013698,2]
[382815637,1756737047263,-480.0,0.00013698,2]
[382815638,1756737047273,-480.0,0.00013698,2]
[382815639,1756737047286,-480.0,0.00013698,2]
[382815640,1756737047295,-480.0,0.00013698,2]
[382815641,1756737047306,-480.0,0.00013698,2]
[382815642,1756737047316,-480.0,0.00013698,2]
[382815643,1756737047325,-480.0,0.00013698,2]
[382815644,1756737047335,-541.34,0.00013698,2]
[382815645,1756737047344,-480.0,0.00013698,2]
[382815646,1756737047353,-480.0,0.00013698,2]
[382815647,1756737047363,-719.03,0.00013698,2]
[382815648,1756737047372,-480.0,0.00013698,2]
[382815649,1756737047382,-480.0,0.00013698,2]
[382815650,1756737047392,-480.0,0.00013698,2]
[382815651,1756737047402,-480.0,0.00013698,2]
[382815652,1756737047411,-480.0,0.00013698,2]
[382815653,1756737047421,-480.0,0.00013698,2]
[382815654,1756737047431,-480.60593743,0.00013698,2]
[382815655,1756737047440,-480.0,0.00013698,2]
[382815656,1756737047450,-480.0,0.00013698,2]
[382815657,1756737047459,-480.0,0.00013698,2]
[382815658,1756737047469,-480.0,0.00013698,2]
[382815659,1756737047478,-497.53,0.00013698,2]
[382815660,1756737047488,-1019.05,0.00013698,2]
[382815661,1756737047498,-751.48,0.00013698,2]
[382815662,1756737047508,-480.0,0.00013698,2]
[382815663,1756737047518,-480.0,0.00013698,2]
[382815664,1756737047527,-480.0,0.00013698,2]
[382815665,1756737047537,-687.24,0.00013698,2]
[382815666,1756737047547,-480.0,0.00013698,2]
[382815667,1756737047556,-480.0,0.00013698,2]
[382815668,1756737047566,-480.0,0.00013698,2]
[382815669,1756737047575,-480.0,0.00013698,2]
[382815670,1756737047585,-500.564487,0.00013698,2]
[382815671,1756737047594,-480.0,0.00013698,2]
[382815672,1756737047604,-563.19,0.00013698,2]
[382815673,1756737047613,-480.0,0.00013698,2]
[382815674,1756737047623,-480.0,0.00013698,2]
[382815675,1756737047633,-866.23,0.00013698,2]
[382815676,1756737047642,-480.0,0.00013698,2]
[382815677,1756737047652,-480.0,0.00013698,2]
[382815678,1756737047661,-538.34,0.00013698,2]
[382815679,1756737047671,-740.49,0.00013698,2]
[382815680,1756737047680,-588.44,0.00013698,2]
[382815681,1756737047690,-592.41,0.00013698,2]
[382815682,1756737047700,-480.0,0.00013698,2]
[382815683,1756737047710,-1075.67,0.00013698,2]
[382815684,1756737047720,-480.0,0.00013698,2]
[382815685,1756737047729,-480.0,0.00013698,2]
[382815686,1756737047738,-621.47,0.00013698,2]
[382815687,1756737047748,-482.53308073,0.00013698,2]
[382815688,1756737047758,-480.0,0.00013698,2]
[382815689,1756737047767,-498.21,0.00013698,2]
[382815690,1756737047776,-480.0,0.00013698,2]
[382815691,1756737047786,-480.0,0.00013698,2]
[382815692,1756737047796,-687.72,0.00013698,2]
[382815693,1756737047805,-2970.36,0.00013698,2]
[382815694,1756737047815,-480.0,0.00013698,2]
[382815695,1756737047827,-480.0,0.00013698,2]
[382815696,1756737047837,-1011.54,0.00013698,2]
[382815697,1756737047846,-917.93,0.00013698,2]
[382815698,1756737047856,-480.0,0.00013698,2]
[382815699,1756737047866,-480.0,0.00013698,2]
[382815700,1756737047875,-480.0,0.00013698,2]
[382815701,1756737047886,-677.19,0.00013698,2]
[382815702,1756737047897,-480.0,0.00013698,2]
[382815703,1756737047907,-480.0,0.00013698,2]
[382815704,1756737047916,-599.34,0.00013698,2]
[382815705,1756737047926,-480.0,0.00013698,2]
[382815706,1756737047935,-480.0,0.00013698,2]
[382815707,1756737047945,-480.0,0.00013698,2]
[382815708,1756737047954,-480.0,0.00013698,2]
[382815709,1756737047964,-480.0,0.00013698,2]
[382815710,1756737047974,-480.0,0.00013698,2]
[382815711,1756737047983,-480.0,0.00013698,2]
[382815712,1756737047994,-480.0,0.00013698,2]
[382815713,1756737048004,-838.15,0.00013698,2]
[382815714,1756737048014,-480.0,0.00013698,2]
[382815715,1756737048023,-480.0,0.00013698,2]
[382815716,1756737048033,-1101.05,0.00013698,2]
[382815717,1756737048043,-480.0,0.00013698,2]
[382815718,1756737048053,-480.0,0.00013698,2]
[382815719,1756737048063,-864.51,0.00013698,2]
[382815720,1756737048072,-480.0,0.00013698,2]
[382815721,1756737048082,-3659.61,0.00013698,2]
[382815722,1756737048091,-660.68,0.00013698,2]
[382815723,1756737048101,-480.0,0.00013698,2]
[382815724,1756737048110,-480.0,0.00013698,2]
[382815725,1756737048121,-176.45152546,0.00013698,2]
[382815726,1756737048131,-2853.6,0.00013698,2]
[382815727,1756737048140,-480.77654323,0.00013698,2]
[382815728,1756737048150,-480.0,0.00013698,2]
[382815729,1756737048159,-480.0,0.00013698,2]
[382815730,1756737048168,-480.0,0.00013698,2]
[382815731,1756737048178,-841.62,0.00013698,2]
[382815732,1756737048187,-926.52,0.00013698,2]
[382815733,1756737048196,-480.0,0.00013698,2]
[382815734,1756737048205,-480.0,0.00013698,2]
[382815735,1756737048215,-850.62,0.00013698,2]
[382815736,1756737048224,-495.38,0.00013698,2]
[382815737,1756737048233,-876.18,0.00013698,2]
[382815738,1756737048243,-480.0,0.00013698,2]
[382815739,1756737048252,-480.0,0.00013698,2]
[382815740,1756737048262,-480.0,0.00013698,2]
[382815741,1756737048272,-1045.1,0.00013698,2]
[382815742,1756737048282,-1236.07,0.00013698,2]
[382815743,1756737048293,-480.0,0.00013698,2]
[382815744,1756737048302,-1228.27,0.00013698,2]
[382815745,1756737048311,-556.23,0.00013698,2]
[382815746,1756737048321,-480.61044114,0.00013698,2]
[382815747,1756737048330,-480.0,0.00013698,2]
[382815748,1756737048339,-480.0,0.00013698,2]
[382815749,1756737048349,-541.91,0.00013698,2]
[382815750,1756737048359,-480.0,0.00013698,2]
[382815751,1756737048368,-2375.52,0.00013698,2]
[382815752,1756737048379,-483.00257519,0.00013698,2]
[382815753,1756737048388,-2491.73,0.00013698,2]
[382815754,1756737048398,-480.0,0.00013698,2]
[382815755,1756737048408,-697.64,0.00013698,2]
[382815756,1756737048418,-480.0,0.00013698,2]
[382815757,1756737048427,-480.0,0.00013698,2]
[382815758,1756737048437,-480.0,0.00013698,2]
[382815759,1756737048446,-480.0,0.00013698,2]
[382815760,1756737048456,-480.0,0.00013698,2]
[382815761,1756737048466,-766.33,0.00013698,2]
[382815762,1756737048475,-480.0,0.00013698,2]
[382815763,1756737048485,-480.0,0.00013698,2]
[382815764,1756737048496,-552.75,0.00013698,2]
[382815765,1756737048505,-828.26,0.00013698,2]
[382815766,1756737048515,-480.0,0.00013698,2]
[382815767,1756737048525,-1179.07,0.00013698,2]
[382815768,1756737048535,-480.0,0.00013698,2]
[382815769,1756737048544,-480.0,0.00013698,2]
[382815770,1756737048555,-2571.03,0.00013698,2]
[382815771,1756737048564,-480.0,0.00013698,2]
[382815772,1756737048574,-480.0,0.00013698,2]
[382815773,1756737048585,-480.0,0.00013698,2]
[382815774,1756737048595,-480.0,0.00013698,2]
[382815775,1756737048605,-480.32030878,0.00013698,2]
[382815776,1756737048614,-480.0,0.00013698,2]
[382815777,1756737048624,-480.0,0.00013698,2]
[382815778,1756737048634,-480.0,0.00013698,2]
[382815779,1756737048644,-480.0,0.00013698,2]
[382815780,1756737048654,-480.0,0.00013698,2]
[382815781,1756737048663,-480.0,0.00013698,2]
[382815782,1756737048673,-480.0,0.00013698,2]
[382815783,1756737048683,-480.0,0.00013698,2]
[382815784,1756737048692,-480.0,0.00013698,2]
[382815785,1756737048702,-480.0,0.00013698,2]
[382815786,1756737048711,-480.0,0.00013698,2]
[382815787,1756737048721,-7290.22,0.00013698,2]
[382815788,1756737048730,-480.0,0.00013698,2]
[382815789,1756737048740,-480.0,0.00013698,2]
[382815790,1756737048750,-480.0,0.00013698,2]
[382815791,1756737048761,-480.0,0.00013698,2]
[382815792,1756737048810,-556.84,0.00013698,2]
[382815793,1756737048823,-960.63,0.00013698,2]
[382815794,1756737048832,-480.0,0.00013698,2]
[382815795,1756737048842,-1071.3,0.00013698,2]
[382815796,1756737048852,-504.42,0.00013698,2]
[382815797,1756737048863,-480.0,0.00013698,2]
[382815798,1756737048872,-480.0,0.00013698,2]
[382815799,1756737048881,-6015.79,0.00013698,2]
[382815800,1756737048891,-480.0,0.00013698,2]
[382815801,1756737048902,-480.0,0.00013698,2]
[382815802,1756737048911,-466.22389191,0.00013698,2]
[382815803,1756737048920,-522.25023421,0.00013698,2]
[382815804,1756737048930,-480.0,0.00013698,2]
[382815805,1756737048939,-772.67,0.00013698,2]
[382815806,1756737048948,-917.75,0.00013698,2]
[382815807,1756737048958,-480.0,0.00013698,2]
[382815808,1756737048967,-480.0,0.00013698,2]
[382815809,1756737048977,-1174.1,0.00013698,2]
[382815810,1756737048987,-480.0,0.00013698,2]
[382815811,1756737048996,-161.18891538,0.00013698,2]
[382815812,1756737049005,-480.0,0.00013698,2]
[382815813,1756737049015,-649.18,0.00013698,2]
[382815814,1756737049024,-480.0,0.00013698,2]
[382815815,1756737049034,-480.93989399,0.00013698,2]
[382815816,1756737049043,-683.17,0.00013698,2]
[382815817,1756737049053,-480.0,0.00013698,2]
[382815818,1756737049062,-2094.04,0.00013698,2]
[382815819,1756737049072,-480.0,0.00013698,2]
[382815820,1756737049082,-480.0,0.00013698,2]
[382815821,1756737049091,-813.18,0.00013698,2]
[382815822,1756737049100,-480.0,0.00013698,2]
[382815823,1756737049110,-480.0,0.00013698,2]
[382815824,1756737049121,-480.0,0.00013698,2]
[382815825,1756737049131,-620.39687836,0.00013698,2]
[382815826,1756737049141,-1346.37,0.00013698,2]
[382815827,1756737049151,-1809.97,0.00013698,2]
[382815828,1756737049161,-482.02396838,0.00013698,2]
[382815829,1756737049170,-698.16,0.00013698,2]
[382815830,1756737049179,-480.0,0.00013698,2]
[382815831,1756737049188,-480.0,0.00013698,2]
[382815832,1756737049198,-602.04,0.00013698,2]
[382815833,1756737049207,-2196.01,0.00013698,2]
[382815834,1756737049216,-480.0,0.00013698,2]
[382815835,1756737049226,-2537.89,0.00013698,2]
[382815836,1756737049235,-480.0,0.00013698,2]
[382815837,1756737049245,-480.0,0.00013698,2]
[382815838,1756737049254,-531.3542734,0.00013698,2]
[382815839,1756737049263,-480.0,0.00013698,2]
[382815840,1756737049273,-480.0,0.00013698,2]
[382815841,1756737049283,-805.73,0.00013698,2]
[382815842,1756737049292,-855.3,0.00013698,2]
[382815843,1756737049301,-480.0,0.00013698,2]
[382815844,1756737049312,-480.0,0.00013698,2]
[382815845,1756737049321,-2033.27,0.00013698,2]
[382815846,1756737049331,-480.0,0.00013698,2]
[382815847,1756737049341,-480.0,0.00013698,2]
[382815848,1756737049350,-5304.17,0.00013698,2]
[382815849,1756737049360,-482.30376197,0.00013698,2]
[382815850,1756737049370,-480.0,0.00013698,2]
[382815851,1756737049379,-521.85,0.00013698,2]
[382815852,1756737049390,-480.0,0.00013698,2]
[382815853,1756737049399,-480.0,0.00013698,2]
[382815854,1756737049409,-480.0,0.00013698,2]
[382815855,1756737049419,-480.0,0.00013698,2]
[382815856,1756737049428,-480.0,0.00013698,2]
[382815857,1756737049438,-480.0,0.00013698,2]
[382815858,1756737049448,-480.0,0.00013698,2]
[382815859,1756737049458,-480.0,0.00013698,2]
[382815860,1756737049468,-585.79,0.00013698,2]
[382815861,1756737049478,-480.0,0.00013698,2]
[382815862,1756737049488,-721.19,0.00013698,2]
[382815863,1756737049498,-155.96891171,0.00013698,2]
[382815864,1756737049507,-2610.74490179,0.00013698,2]
[382815865,1756737049517,-712.31,0.00013698,2]
[382815866,1756737049527,-568.49,0.00013698,2]